lending/lending_fUSD_20240603
["ID","MTS","AMOUNT","RATE_DAILY","PERIOD"]
[328459626,1717416652367,-500.0,0.0003314,4]
[328459627,1717416652376,-542.65,0.0003314,4]
[328459628,1717416652386,-500.0,0.0003314,4]
[328459629,1717416652395,-500.0,0.0003314,4]
[328459630,1717416652405,-426.45,0.0003314,4]
[328459631,1717416652415,-310.4,0.0003314,4]
[328459632,1717416652424,-500.0,0.0003314,4]
[328459633,1717416652433,-2202.7810808,0.00033154,2]
[328459634,1717416652443,-6097.5865868,0.00033154,2]
[328459635,1717416652452,-154.41643192,0.00033172,7]
[328459636,1717416652461,-151.0,0.00033177,7]
[328459637,1717416652471,-151.0,0.00033177,7]
[328459638,1717416652480,-16921.69458338,0.00033177,2]
[328459639,1717416652614,-257.67932764,0.00033177,2]
[328459640,1717416652626,-3516.94113575,0.00033177,2]
[328459641,1717416652643,-150.0,0.00032466,2]
[328459642,1717416652652,-3171.83168893,0.00033177,2]
[328459643,1717416652661,-801.0,0.00033194,2]
[328459644,1717416652671,-671.14814891,0.00033199,2]
[328459645,1717416652682,-3328.85185109,0.00033199,2]
[328459646,1717416652692,-345.0,0.000332,6]
[328459647,1717416652701,-545.0,0.000332,18]
[328459648,1717416652710,-345.0,0.000332,6]
[328459649,1717416652720,-150.0,0.000332,6]
[328459650,1717416652729,-2046.34628357,0.000332,5]
[328459651,1717416652739,-447.92153117,0.000332,2]
[328459652,1717416652749,-162.74866206,0.000332,2]
[328459653,1717416652759,-423.80389191,0.000332,15]
[328459654,1717416652768,-6660.4683158,0.000332,2]
[328459655,1717416652778,-308.49703055,0.000332,2]
[328459656,1717416652787,-1208.167416,0.00033211,2]
[328459657,1717416652797,-3344.3656724,0.00033211,2]
[328459658,1717416652807,-500.0,0.00033222,2]
[328459659,1717416652816,-500.0,0.00033222,2]
[328459660,1717416652825,-500.0,0.00033222,2]
[328459661,1717416652834,-500.0,0.00033225,2]
[328459662,1717416652843,-500.0,0.00033244,2]
[328459663,1717416652852,-500.0,0.00033248,2]
[328459664,1717416652861,-173.0,0.0003325,15]
[328459665,1717416652870,-173.0,0.0003326,15]
[328459666,1717416652879,-17150.31315993,0.0003327,30]
[328459667,1717416652888,-209.0,0.0003327,2]
[328459668,1717416652897,-179.99,0.0003327,15]
[328459669,1717416652907,-300.0,0.0003327,2]
[328459670,1717416652916,-47840.33820638,0.00033277,7]
[328459671,1717416652926,-886.61616683,0.00033277,90]
[328459672,1717416652935,-230100.71454334,0.0003328,7]
[328459673,1717416652948,-421032.89120965,0.0003328,7]
[328459674,1717416652960,-665.84359141,0.0003328,7]
[328459675,1717416652971,-10970.52681283,0.0003328,7]
[328459676,1717416653097,-150.0,0.00032466,2]
[328459677,1717416653107,-1550.50776654,0.0003328,7]
[328459678,1717416653118,-1706.48451016,0.0003328,7]
[328459679,1717416653135,-701.78153052,0.0003328,7]
[328459680,1717416653146,-1779.675,0.0003328,7]
[328459681,1717416653158,-3843.32882048,0.0003328,7]
[328459682,1717416653170,-1445.92271892,0.0003328,7]
[328459683,1717416653188,-1000.0,0.0003328,7]
[328459684,1717416653376,-520.22,0.00031398,4]
[328459685,1717416653385,-416.78,0.00032329,2]
[328459686,1717416653394,-422.0,0.00032466,2]
[328459687,1717416653403,-285.67404849,0.0003328,7]
[328459688,1717416654165,-8913.75080272,0.0003328,7]
[328459689,1717416654176,-7124.4,0.0003328,7]
[328459690,1717416654188,-133917.9999999,0.0003328,7]
[328459691,1717416654200,-5570.45453968,0.0003328,7]
[328459692,1717416654211,-2413.75,0.0003328,7]
[328459693,1717416654223,-32054.92184936,0.0003328,7]
[328459694,1717416654233,-173.0,0.0003328,15]
[328459695,1717416654242,-151.0,0.0003328,7]
[328459696,1717416654253,-253.438302,0.0003328,7]
[328459697,1717416654262,-176.892303,0.0003328,7]
[328459698,1717416654272,-176.892303,0.0003328,7]
[328459699,1717416654281,-151.0,0.0003328,7]
[328459700,1717416654291,-150.0,0.00033288,2]
[328459701,1717416654300,-150.0,0.00033288,2]
[328459702,1717416654309,-150.0,0.00033288,2]
[328459703,1717416654318,-150.0,0.00033288,2]
[328459704,1717416654328,-150.0,0.00033288,2]
[328459705,1717416654337,-304.95,0.00033288,2]
[328459706,1717416654346,-150.0,0.00033288,2]
[328459707,1717416654356,-150.0,0.00033288,2]
[328459708,1717416654365,-872.23,0.00033288,2]
[328459709,1717416654374,-872.23,0.00033288,2]
[328459710,1717416654383,-150.0,0.00033288,2]
[328459711,1717416654392,-415.99,0.00033288,2]
[328459712,1717416654402,-414.98,0.00033288,2]
[328459713,1717416654411,-150.0,0.00033288,2]
[328459714,1717416654420,-150.0,0.00033288,2]
[328459715,1717416654429,-150.0,0.00033288,2]
[328459716,1717416654438,-150.0,0.00033288,2]
[328459717,1717416654447,-150.0,0.00033288,2]
[328459718,1717416654457,-150.0,0.00033288,2]
[328459719,1717416654466,-375.13404797,0.0003329,3]
[328459720,1717416654476,-159.13290112,0.0003329,3]
[328459721,1717416654485,-52667.65423202,0.0003329,2]
[328459722,1717416654498,-3935.82431281,0.0003329,2]
[328459723,1717416654514,-11664.0,0.0003329,2]
[328459724,1717416654526,-547.84176427,0.0003329,2]
[328459726,1717417295749,1793.01820727,0.00017259,2]
[328459727,1717417431482,5211.26652768,0.00017259,2]
[328459728,1717417442696,150.0,0.00019725,2]
[328459729,1717417564421,1566.33170942,0.00017259,2]
[328459730,1717417584342,-7152.98,0.00026817,20]
[328459731,1717417610864,253.04392149,0.00017259,2]
[328459739,1717417832360,-226.51830624,0.000201,2]
[328459740,1717417832370,-156.46,0.00024384,2]
[328459741,1717417832380,-154.52979958,0.000264,2]
[328459742,1717417832390,-1262.49189418,0.00026499,2]
[328459743,1717417832402,-253.92241788,0.00026499,2]
[328459744,1717417832413,-71.58568794,0.00026499,2]
[328459745,1717417832422,-898.5006628,0.000265,3]
[328459746,1717417832434,-372.4993372,0.000265,3]
[328459747,1717417832443,-309.10111499,0.00026571,2]
[328459748,1717417832452,-1382.72,0.00026571,2]
[328459749,1717417832462,-3505.7703,0.00026674,2]
[328459750,1717417832471,-6082.94749341,0.00026674,2]
[328459751,1717417832483,-5884.10250659,0.00026674,2]
[328459752,1717417832492,-3841.17,0.00026674,2]
[328459753,1717417832502,-1012.38,0.00026674,2]
[328459754,1717417832512,-499.99,0.00026674,2]
[328459755,1717417832521,-4605.39676169,0.00026817,2]
[328459756,1717417832530,-150.99,0.00026817,2]
[328459757,1717417832540,-155.0,0.00026839,2]
[328459758,1717417832550,-155.9550727,0.0002684,2]
[328459759,1717417832559,-256.12615957,0.00026841,2]
[328459760,1717417832568,-268.8327842,0.00026841,2]
[328459761,1717417832577,-155.0,0.00026841,2]
[328459762,1717417832586,-5122.04796356,0.00026841,2]
[328459763,1717417832596,-10952.16001412,0.00026841,2]
[328459764,1717417832605,-687.6604682,0.00026841,2]
[328459765,1717417832615,-1000.0,0.00026842,2]
[328459766,1717417832625,-160.31590246,0.00026842,2]
[328459767,1717417832634,-150.99,0.00026843,2]
[328459768,1717417832644,-342.66,0.00026875,2]
[328459769,1717417832654,-155.91051025,0.00027,4]
[328459770,1717417832663,-233.0,0.00028,2]
[328459771,1717417832673,-200.0,0.00028038,2]
[328459772,1717417832682,-237.93,0.00028282,2]
[328459773,1717417832692,-250.0,0.00028637,2]
[328459774,1717417832701,-220.28,0.00028855,2]
[328459775,1717417832711,-177.22,0.00028896,2]
[328459776,1717417832720,-177.22,0.00028932,2]
[328459777,1717417832730,-220.28,0.00028934,2]
[328459778,1717417832741,-177.22,0.00028968,2]
[328459779,1717417832751,-177.22,0.00029004,2]
[328459780,1717417832761,-220.28,0.00029013,2]
[328459781,1717417832771,-177.22,0.0002904,2]
[328459782,1717417832780,-220.28,0.00029092,2]
[328459783,1717417832789,-168.84,0.00029108,2]
[328459784,1717417832965,-342.66,0.00029139,2]
[328459785,1717417832975,-657.43,0.00029142,2]
[328459786,1717417832986,-220.28,0.00029172,2]
[328459787,1717417832997,-220.28,0.00029251,2]
[328459788,1717417833008,-155.23468504,0.00029282,2]
[328459789,1717417833018,-220.28,0.0002933,2]
[328459790,1717417833028,-220.28,0.00029409,2]
[328459791,1717417833038,-220.28,0.00029488,2]
[328459792,1717417833048,-220.28,0.00029567,2]
[328459793,1717417833059,-220.28,0.00029646,2]
[328459794,1717417833068,-1000.0,0.00029724,2]
[328459795,1717417833078,-220.28,0.00029726,2]
[328459796,1717417833088,-220.28,0.00029805,2]
[328459797,1717417833098,-220.28,0.00029884,2]
[328459798,1717417833108,-1869.65827179,0.000299,2]
[328459799,1717417833118,-220.28,0.00029963,2]
[328459800,1717417833128,-1003.76868611,0.0003,15]
[328459801,1717417833138,-437.65949493,0.0003,4]
[328459802,1717417833149,-1869.24230916,0.0003,4]
[328459803,1717417833159,-2349.79329018,0.0003,4]
[328459804,1717417833169,-5000.0,0.0003,4]
[328459805,1717417833179,-5703.59628396,0.0003,2]
[328459806,1717417833188,-2181.29187519,0.0003,10]
[328459807,1717417833198,-220.28,0.00030042,2]
[328459808,1717417833207,-220.28,0.00030121,2]
[328459809,1717417833216,-220.28,0.00030201,2]
[328459810,1717417833225,-220.28,0.0003028,2]
[328459811,1717417833234,-220.28,0.00030359,2]
[328459812,1717417833243,-161.67920678,0.00030445,7]
[328459813,1717417833254,-155.23468504,0.00030529,7]
[328459814,1717417833263,-150.03176389,0.00031,15]
[328459815,1717417833273,-5024.56130459,0.00031,15]
[328459818,1717417833285,-400.0,0.00031,15]
[328459820,1717417833297,-988.39752434,0.00031,15]
[328459821,1717417833306,-12012.53957668,0.00031099,2]
[328459822,1717417833318,-833.79793316,0.00031099,2]
[328459823,1717417833331,-318.86689986,0.00031099,2]
[328459824,1717417833343,-3006.27280344,0.00031099,2]
[328459826,1717417833355,-505.38615579,0.00031099,2]
[328459828,1717417833367,-331.9629089,0.00031099,2]
[328459830,1717417833378,-659.47,0.00031099,2]
[328459831,1717417833425,-826.29867666,0.00031099,2]
[328459832,1717417833436,-11236.20296359,0.00031099,2]
[328459833,1717417833446,-690.20000005,0.00031099,2]
[328459834,1717417833458,-91709.55648187,0.00031099,2]
[328459835,1717417833467,-2500.0,0.00031099,2]
[328459836,1717417833477,-1070.6341,0.000311,2]
[328459837,1717417833487,-8970.8739,0.000311,2]
[328459838,1717417833496,-5450.1524,0.000311,2]
[328459839,1717417833505,-4516.3466,0.000311,2]
[328459840,1717417833514,-1027.4565,0.000311,2]
[328459841,1717417833523,-3135.1335,0.000311,2]
[328459842,1717417833532,-379.4439,0.000311,2]
[328459843,1717417833542,-152.0,0.00031134,3]
[328459844,1717417833551,-500.0,0.00031198,4]
[328459845,1717417833561,-500.0,0.00031198,4]
[328459846,1717417833571,-500.0,0.00031199,4]
[328459847,1717417833580,-531.43998952,0.00031199,4]
[328459848,1717417833589,-616.6611754,0.00031199,4]
[328459849,1717417833600,-518.19048744,0.00031199,4]
[328459850,1717417833609,-500.0,0.00031199,4]
[328459851,1717417833619,-525.58605271,0.00031199,4]
[328459852,1717417833628,-500.0,0.00031199,4]
[328459853,1717417833638,-500.0,0.00031199,4]
[328459854,1717417833647,-500.0,0.00031199,4]
[328459855,1717417833656,-500.0,0.00031199,4]
[328459856,1717417833665,-516.33265813,0.00031199,4]
[328459857,1717417833674,-500.0,0.00031199,4]
[328459858,1717417833683,-538.3164473,0.00031199,4]
[328459859,1717417833692,-500.0,0.00031199,4]
[328459860,1717417833702,-500.0,0.00031199,4]
[328459861,1717417833711,-500.0,0.00031199,4]
[328459862,1717417833721,-261.72876215,0.00031199,4]
[328459863,1717417833731,-500.0,0.00031199,4]
[328459864,1717417833741,-500.0,0.00031199,4]
[328459865,1717417833752,-500.0,0.00031199,4]
[328459866,1717417833761,-450.72381372,0.00031199,4]
[328459867,1717417833771,-510.35774227,0.00031199,4]
[328459868,1717417833780,-500.0,0.00031199,4]
[328459869,1717417833790,-500.0,0.00031199,4]
[328459870,1717417833799,-500.0,0.00031199,4]
[328459871,1717417833809,-500.0,0.00031199,4]
[328459872,1717417833818,-742.85,0.00031199,4]
[328459873,1717417833828,-500.0,0.00031199,4]
[328459874,1717417833837,-558.72,0.00031199,4]
[328459875,1717417833845,-500.0,0.00031199,4]
[328459876,1717417833855,-500.0,0.00031199,4]
[328459877,1717417833864,-500.0,0.00031199,4]
[328459878,1717417833874,-500.0,0.00031199,4]
[328459879,1717417833883,-500.0,0.00031199,4]
[328459880,1717417833893,-500.0,0.00031199,4]
[328459881,1717417833902,-500.0,0.00031199,4]
[328459882,1717417833917,-500.0,0.00031199,4]
[328459883,1717417833927,-529.40282494,0.00031199,4]
[328459884,1717417833936,-500.0,0.00031199,4]
[328459885,1717417833946,-500.0,0.00031199,4]
[328459886,1717417833956,-500.0,0.00031199,4]
[328459887,1717417833966,-500.0,0.00031199,4]
[328459888,1717417833975,-500.0,0.00031199,4]
[328459889,1717417833987,-500.0,0.00031199,4]
[328459890,1717417833997,-157.57606555,0.00031199,4]
[328459891,1717417834006,-341.47610882,0.00031199,4]
[328459892,1717417834015,-500.0,0.00031199,4]
[328459893,1717417834025,-500.0,0.00031199,4]
[328459894,1717417834034,-612.43,0.00031199,4]
[328459895,1717417834044,-500.0,0.00031199,4]
[328459896,1717417834053,-500.0,0.00031199,4]
[328459897,1717417834063,-591.81,0.00031199,4]
[328459898,1717417834072,-500.0,0.00031199,4]
[328459899,1717417834081,-500.0,0.00031199,4]
[328459900,1717417834091,-500.0,0.00031199,4]
[328459901,1717417834100,-500.0,0.00031199,4]
[328459902,1717417834110,-500.0,0.00031199,4]
[328459903,1717417834119,-214.67,0.00031199,4]
[328459904,1717417834128,-500.0,0.00031199,4]
[328459905,1717417834138,-500.0,0.00031199,4]
[328459906,1717417834147,-500.0,0.00031199,4]
[328459907,1717417834157,-448.17753071,0.00031199,4]
[328459908,1717417834166,-736.69,0.00031199,4]
[328459909,1717417834175,-500.0,0.00031199,4]
[328459910,1717417834184,-514.99484223,0.00031199,4]
[328459911,1717417834194,-500.0,0.00031199,4]
[328459912,1717417834203,-500.0,0.00031199,4]
[328459913,1717417834212,-500.0,0.00031199,4]
[328459914,1717417834221,-500.0,0.00031199,4]
[328459915,1717417834230,-524.0522462,0.00031199,4]
[328459916,1717417834239,-533.90876364,0.00031199,4]
[328459917,1717417834250,-500.0,0.00031199,4]
[328459918,1717417834259,-500.0,0.00031199,4]
[328459919,1717417834269,-500.0,0.00031199,4]
[328459920,1717417834279,-500.0,0.00031199,4]
[328459921,1717417834288,-500.0,0.00031199,4]
[328459922,1717417834297,-500.0,0.00031199,4]
[328459923,1717417834307,-500.0,0.00031199,4]
[328459924,1717417834316,-500.0,0.00031199,4]
[328459925,1717417834325,-500.0,0.00031199,4]
[328459926,1717417834334,-514.68,0.00031199,4]
[328459927,1717417834344,-500.0,0.00031199,4]
[328459928,1717417834353,-500.0,0.00031199,4]
[328459929,1717417834362,-500.0,0.00031199,4]
[328459930,1717417834371,-500.0,0.00031199,4]
[328459931,1717417834380,-500.0,0.00031199,4]
[328459932,1717417834390,-500.0,0.00031199,4]
[328459933,1717417834399,-500.0,0.00031199,4]
[328459934,1717417834408,-500.0,0.00031199,4]
[328459935,1717417834417,-532.3638123,0.00031199,4]
[328459936,1717417834427,-382.27894731,0.00031199,4]
[328459937,1717417834437,-509.71488099,0.00031199,4]
[328459938,1717417834446,-500.0,0.00031199,4]
[328459939,1717417834455,-500.0,0.00031199,4]
[328459940,1717417834464,-518.90176532,0.00031199,4]
[328459941,1717417834473,-500.0,0.00031199,4]
[328459942,1717417834482,-157.9839181,0.00031199,4]
[328459943,1717417834491,-500.0,0.00031199,4]
[328459944,1717417834501,-500.0,0.00031199,4]
[328459945,1717417834510,-500.0,0.00031199,4]
[328459946,1717417834519,-500.0,0.00031199,4]
[328459947,1717417834529,-500.0,0.00031199,4]
[328459948,1717417834538,-238.10762508,0.00031199,4]
[328459949,1717417834547,-500.0,0.00031199,4]
[328459950,1717417834556,-500.0,0.00031199,4]
[328459951,1717417834565,-500.0,0.00031199,4]
[328459952,1717417834575,-500.0,0.00031199,4]
[328459953,1717417834584,-575.69,0.00031199,4]
[328459954,1717417834593,-500.0,0.00031199,4]
[328459955,1717417834602,-1000.0,0.00031199,4]
[328459956,1717417834611,-550.98,0.00031199,4]
[328459957,1717417834620,-500.0,0.00031199,4]
[328459958,1717417834629,-500.0,0.00031199,4]
[328459959,1717417834639,-500.0,0.00031199,4]
[328459960,1717417834649,-500.0,0.00031199,4]
[328459961,1717417834659,-500.0,0.00031199,4]
[328459962,1717417834668,-500.0,0.00031199,4]
[328459963,1717417834678,-500.0,0.00031199,4]
[328459964,1717417834687,-1498.58,0.00031199,4]
[328459965,1717417834697,-500.0,0.00031199,4]
[328459966,1717417834706,-614.08,0.00031199,4]
[328459967,1717417834715,-500.0,0.00031199,4]
[328459968,1717417834724,-500.0,0.00031199,4]
[328459969,1717417834733,-555.59,0.00031199,4]
[328459970,1717417834743,-500.0,0.00031199,4]
[328459971,1717417834754,-500.0,0.00031199,4]
[328459972,1717417834763,-500.0,0.00031199,4]
[328459973,1717417834772,-500.0,0.00031199,4]
[328459974,1717417834782,-500.0,0.00031199,4]
[328459975,1717417834791,-500.0,0.00031199,4]
[328459976,1717417834800,-500.0,0.00031199,4]
[328459977,1717417834810,-2143.67,0.00031199,4]
[328459978,1717417834818,-500.0,0.00031199,4]
[328459979,1717417834827,-1169.1,0.00031199,4]
[328459980,1717417834837,-500.0,0.00031199,4]
[328459981,1717417834846,-500.0,0.00031199,4]
[328459982,1717417834855,-578.49,0.00031199,4]
[328459983,1717417834864,-500.0,0.00031199,4]
[328459984,1717417834874,-500.0,0.00031199,4]
[328459985,1717417834882,-500.0,0.00031199,4]
[328459986,1717417834892,-500.0,0.00031199,4]
[328459987,1717417834901,-500.0,0.00031199,4]
[328459988,1717417834914,-500.0,0.00031199,4]
[328459989,1717417834922,-500.0,0.00031199,4]
[328459990,1717417834932,-500.0,0.00031199,4]
[328459991,1717417834941,-500.0,0.00031199,4]
[328459992,1717417834950,-500.0,0.00031199,4]
[328459993,1717417834959,-500.0,0.00031199,4]
[328459994,1717417834969,-500.0,0.00031199,4]
[328459995,1717417834978,-500.0,0.00031199,4]
[328459996,1717417834988,-500.0,0.00031199,4]
[328459997,1717417834998,-500.0,0.00031199,4]
[328459998,1717417835007,-660.4,0.00031199,4]
[328459999,1717417835016,-500.0,0.00031199,4]
[328460000,1717417835025,-500.0,0.00031199,4]
[328460001,1717417835034,-500.0,0.00031199,4]
[328460002,1717417835043,-500.0,0.00031199,4]
[328460003,1717417835052,-500.0,0.00031199,4]
[328460004,1717417835061,-500.0,0.00031199,4]
[328460005,1717417835070,-500.0,0.00031199,4]
[328460006,1717417835080,-500.0,0.00031199,4]
[328460007,1717417835090,-500.0,0.00031199,4]
[328460008,1717417835099,-500.0,0.00031199,4]
[328460009,1717417835109,-500.0,0.00031199,4]
[328460010,1717417835118,-500.0,0.00031199,4]
[328460011,1717417835127,-512.42570529,0.00031199,4]
[328460012,1717417835136,-542.29,0.00031199,4]
[328460013,1717417835146,-500.0,0.00031199,4]
[328460014,1717417835155,-500.0,0.00031199,4]
[328460015,1717417835165,-322.94937797,0.00031199,2]
[328460016,1717417835174,-500.0,0.00031199,4]
[328460017,1717417835183,-500.0,0.00031199,4]
[328460018,1717417835192,-500.0,0.00031199,4]
[328460019,1717417835201,-500.0,0.00031199,4]
[328460020,1717417835211,-1969.3,0.00031199,4]
[328460021,1717417835220,-7968.28,0.00031199,4]
[328460022,1717417835229,-500.0,0.00031199,4]
[328460023,1717417835238,-628.05,0.00031199,4]
[328460024,1717417835247,-500.0,0.00031199,4]
[328460025,1717417835257,-618.93,0.00031199,4]
[328460026,1717417835267,-500.0,0.00031199,4]
[328460027,1717417835276,-507.64570682,0.00031199,4]
[328460028,1717417835285,-365.86050989,0.00031199,4]
[328460029,1717417835295,-536.56133262,0.00031199,4]
[328460030,1717417835304,-500.0,0.00031199,4]
[328460031,1717417835313,-500.0,0.00031199,4]
[328460032,1717417835322,-500.0,0.00031199,4]
[328460033,1717417835331,-500.0,0.00031199,4]
[328460034,1717417835340,-500.0,0.00031199,4]
[328460035,1717417835349,-500.0,0.00031199,4]
[328460036,1717417835359,-500.0,0.00031199,4]
[328460037,1717417835368,-500.0,0.00031199,4]
[328460038,1717417835377,-500.0,0.00031199,4]
[328460039,1717417835386,-354.98499397,0.00031199,4]
[328460040,1717417835395,-500.0,0.00031199,4]
[328460041,1717417835405,-500.0,0.00031199,4]
[328460042,1717417835414,-500.0,0.00031199,4]
[328460043,1717417835423,-553.41797496,0.00031199,4]
[328460044,1717417835432,-500.0,0.00031199,4]
[328460045,1717417835441,-500.0,0.00031199,4]
[328460046,1717417835450,-500.0,0.00031199,4]
[328460047,1717417835459,-500.0,0.00031199,4]
[328460048,1717417835469,-500.0,0.00031199,4]
[328460049,1717417835478,-500.0,0.00031199,4]
[328460050,1717417835487,-500.0,0.00031199,4]
[328460051,1717417835496,-630.68,0.00031199,4]
[328460052,1717417835507,-500.0,0.00031199,4]
[328460053,1717417835516,-281.08692411,0.00031199,4]
[328460054,1717417835524,-500.0,0.00031199,4]
[328460055,1717417835534,-500.0,0.00031199,4]
[328460056,1717417835543,-380.62747238,0.00031199,4]
[328460057,1717417835553,-565.08,0.00031199,4]
[328460058,1717417835562,-500.0,0.00031199,4]
[328460059,1717417835571,-500.0,0.00031199,4]
[328460060,1717417835581,-500.0,0.00031199,4]
[328460061,1717417835590,-194828.0818,0.000312,2]
[328460062,1717417835599,-163.45968739,0.00031274,7]
[328460063,1717417835609,-7500.0,0.00031296,2]
[328460064,1717417835618,-1833.61,0.00031299,11]
[328460065,1717417835627,-12384.12879956,0.00031353,2]
[328460066,1717417835636,-150.03176387,0.00031367,15]
[328460067,1717417835645,-1000.0,0.00031396,2]
[328460068,1717417835654,-500.0,0.00031396,4]
[328460069,1717417835663,-500.0,0.00031396,4]
[328460070,1717417835672,-500.0,0.00031396,4]
[328460071,1717417835682,-500.0,0.00031396,4]
[328460072,1717417835690,-500.0,0.00031396,4]
[328460073,1717417835700,-500.0,0.00031396,4]
[328460074,1717417835709,-500.0,0.00031396,4]
[328460075,1717417835718,-500.0,0.00031396,4]
[328460076,1717417835727,-500.0,0.00031396,4]
[328460077,1717417835737,-500.0,0.00031396,4]
[328460078,1717417835746,-500.0,0.00031396,4]
[328460079,1717417835756,-500.0,0.00031396,4]
[328460080,1717417835766,-500.0,0.00031396,4]
[328460081,1717417835776,-500.0,0.00031396,4]
[328460082,1717417835786,-500.0,0.00031396,4]
[328460083,1717417835912,-608.74010232,0.00031396,4]
[328460084,1717417835922,-500.0,0.00031396,4]
[328460085,1717417835931,-519.82891044,0.00031396,4]
[328460086,1717417835940,-500.0,0.00031396,4]
[328460087,1717417835950,-161.47,0.00031396,4]
[328460088,1717417835958,-500.0,0.00031396,4]
[328460089,1717417835968,-500.0,0.00031396,4]
[328460090,1717417835978,-500.0,0.00031396,4]
[328460091,1717417835988,-500.0,0.00031396,4]
[328460092,1717417835998,-500.0,0.00031396,4]
[328460093,1717417836007,-500.0,0.00031396,4]
[328460094,1717417836017,-500.0,0.00031396,4]
[328460095,1717417836026,-500.0,0.00031396,4]
[328460096,1717417836035,-257.69973596,0.00031396,4]
[328460097,1717417836044,-500.0,0.00031396,4]
[328460098,1717417836054,-514.1407845,0.00031396,4]
[328460099,1717417836063,-533.08946301,0.00031396,4]
[328460100,1717417836073,-517.61414377,0.00031396,4]
[328460101,1717417836083,-512.02948847,0.00031396,4]
[328460102,1717417836093,-574.95,0.00031396,4]
[328460103,1717417836103,-524.71624324,0.00031396,4]
[328460104,1717417836112,-500.0,0.00031396,4]
[328460105,1717417836121,-289.05839402,0.00031396,4]
[328460106,1717417836131,-500.0,0.00031396,4]
[328460107,1717417836141,-500.0,0.00031396,4]
[328460108,1717417836151,-500.0,0.00031396,4]
[328460109,1717417836160,-500.0,0.00031396,4]
[328460110,1717417836169,-513.06876144,0.00031396,4]
[328460111,1717417836179,-500.0,0.00031396,4]
[328460112,1717417836188,-500.0,0.00031396,4]
[328460113,1717417836197,-500.0,0.00031396,4]
[328460114,1717417836206,-500.0,0.00031396,4]
[328460115,1717417836215,-500.0,0.00031396,4]
[328460116,1717417836224,-500.0,0.00031396,4]
[328460117,1717417836234,-516.49646093,0.00031396,4]
[328460118,1717417836243,-500.0,0.00031396,4]
[328460119,1717417836252,-500.0,0.00031396,4]
[328460120,1717417836262,-525.13,0.00031396,4]
[328460121,1717417836271,-500.0,0.00031396,4]
[328460122,1717417836280,-507.13934541,0.00031396,4]
[328460123,1717417836289,-513.98559746,0.00031396,4]
[328460124,1717417836298,-206.68686527,0.00031396,4]
[328460125,1717417836307,-500.0,0.00031396,4]
[328460126,1717417836316,-512.72948556,0.00031396,4]
[328460127,1717417836327,-500.0,0.00031396,4]
[328460128,1717417836336,-500.0,0.00031396,4]
[328460129,1717417836345,-527.48683168,0.00031396,4]
[328460130,1717417836354,-520.93509281,0.00031396,4]
[328460131,1717417836363,-500.0,0.00031396,4]
[328460132,1717417836372,-500.0,0.00031396,4]
[328460133,1717417836382,-500.0,0.00031396,4]
[328460134,1717417836391,-500.0,0.00031396,4]
[328460135,1717417836400,-500.0,0.00031396,4]
[328460136,1717417836410,-500.0,0.00031396,4]
[328460137,1717417836419,-572.89,0.00031396,4]
[328460138,1717417836428,-500.0,0.00031396,4]
[328460139,1717417836438,-500.0,0.00031396,4]